[Event "31st MPL National U18G Chess-ch 2022"]
[Site "Pollachi"]
[Date "2022.04.19"]
[Round "4.2"]
[White "Rindhiya V"]
[Black "Anupam M Sreekumar"]
[Result "0-1"]
[ECO "C54"]
[WhiteElo "1949"]
[BlackElo "1724"]
[Annotator "TA"]
[PlyCount "120"]
[EventDate "2022.04.18"]
[EventCountry "IND"]
[SourceTitle "playchess.com"]
[Source "ChessBase"]
[SourceQuality "1"]
[TimeControl "5400+30"]

{[%evp 14,120,15,10,22,3,15,-42,-7,0,20,11,29,8,0,0,20,-21,-20,-12,-6,-17,-10,-145,-135,-170,-156,-163,-126,-132,-106,-255,-258,-314,-220,-206,-206,-214,-220,-218,-179,-208,-225,-306,-306,-520,-242,-408,-176,-179,-163,-231,-229,-207,-225,-220,-162,-172,-143,-146,-136,-138,-150,-150,-136,-181,-171,-272,-145,-281,-278,-295,-284,-301,-244,-335,-333,-440,-440,-434,-431,-457,-426,-675,-695,-909,-900,-851,-840,-678,-491,-29960,-29959,-29951,-4784,-29965,-29965,-29964,-29967,-29974,-29975,-29972,-29973,-29983,-29984,-29984,-29985,-29985,-29977]} 1. e4 {[%emt 0:00:01]} e5 {[%emt 0:00:25]} 2. Nf3 {[%emt 0:00:07]} Nc6 {[%emt 0:00:06]} 3. Bc4 {[%emt 0:00:03]} Bc5 {[%emt 0:00:09]} 4. c3 {[%emt 0:00:12]} Nf6 {[%emt 0:00:06]} 5. d3 {[%emt 0:00:02]} d6 {[%emt 0:01:13]} 6. Nbd2 {[%emt 0:00:12]} a6 {[%emt 0:00:40] 6...a5 is a critical line.} 7. Bb3 {[%emt 0:00:04]} O-O {[%emt 0:00:47]} 8. h3 {[%emt 0:00:26]} h6 {[%emt 0:00:51] C54: Giuoco Piano: 4 c3 Nf6, main lines with 5 d4 and 5 d3.} 9. Nf1 {[%emt 0:01:36]} d5 {[%emt 0:01:58]} 10. Qe2 {[%emt 0:00:19]} ({White should play} 10. exd5 $11 Nxd5 11. Ng3) 10... Re8 {[%emt 0:00:56] Black is slightly better.} 11. Ng3 {[%emt 0:00:38]} Bf8 {[%emt 0:01:13]} 12. O-O {[%emt 0:00:22] [#]} g6 $146 {[%emt 0:01:29]} ({Predecessor:} 12... Na5 13. Bc2 c5 14. Re1 d4 15. Bd2 Nc6 16. Bb3 Na5 17. Bc2 b5 18. cxd4 cxd4 {0-1 (85) Tabatabaei,M (2200)-Behmardi,K (2276) Tabriz 2013}) 13. Rd1 {[%emt 0:04:12]} Bg7 {[%emt 0:01:31]} 14. Bc2 {[%emt 0:01:10]} Be6 {[%emt 0:01:42]} 15. d4 {[%emt 0:09:56]} exd4 {[%emt 0:10:52]} 16. e5 {[%emt 0:00:44] [#]} d3 $1 {[%emt 0:00:38]} 17. Bxd3 {[%emt 0:07:20]} (17. Rxd3 Nd7) 17... Nd7 {[%emt 0:00:35][%cal Rd7e5,Bf6d7,Bd7c5,Bc5b3][%mdl 32]} 18. c4 {[%emt 0:13:49]} (18. Bf4 $11 {was the only way to keep the balance.}) 18... dxc4 $17 {[%emt 0:03:21]} (18... Bxe5 19. Nxe5 Ncxe5 20. cxd5 Bxd5 21. Be4 $11) 19. Be4 {[%emt 0:13:53]} Qe7 {[%emt 0:00:56]} 20. Bf4 {[%emt 0:09:44]} Nc5 {[%emt 0:04:42]} (20... Bxe5 21. Nxe5 Ndxe5 22. Bxe5 Nxe5 23. Bxb7 $16) 21. Bxc6 {[%emt 0:08:53]} bxc6 {[%emt 0:00:17]} 22. Nd4 {[%emt 0:03:39] White does not recover from this.} (22. Qe3 $17) 22... Bd5 $19 {[%emt 0:01:24]} 23. Qg4 {[%emt 0:06:24][%cal Od4f5]} Kh7 {[%emt 0:01:43] aiming for ...Nd3.} ({Weaker is} 23... Bxe5 24. Ngf5 Qf6 25. Nxh6+ Kf8 26. Bxe5 Qxe5 27. b3 $17) 24. b3 {[%emt 0:12:04]} cxb3 {[%emt 0:02:02]} ({And not} 24... Bxe5 25. Bxe5 f5 26. Nxc6 Bxc6 27. Qxc4 $11) 25. axb3 {[%emt 0:00:06]} Nxb3 {[%emt 0:03:06]} ({Worse is} 25... Bxe5 26. Bxe5 Qxe5 27. Ra5) 26. Nxb3 {[%emt 0:00:15]} Bxb3 {[%emt 0:00:06] This bishop pair is nice.} 27. Rd7 {[%emt 0:00:25]} Qe6 {[%emt 0:00:28]} 28. Qxe6 {[%emt 0:04:38]} Bxe6 {[%emt 0:00:11]} 29. Rxc7 {[%emt 0:00:03]} (29. Rd3) 29... Bd5 {[%emt 0:00:09]} (29... g5 $142 30. Re1 gxf4) 30. Ra5 $2 {[%emt 0:03:32]} (30. Nf1 {keeps fighting.}) 30... Bxe5 {[%emt 0:01:37]} (30... g5 $142 31. Bd2 Bxe5) 31. Bxe5 {[%emt 0:00:02]} Rxe5 {[%emt 0:00:12]} 32. Rxf7+ {[%emt 0:00:22]} (32. f3 {was worth a try.}) 32... Bxf7 {[%emt 0:01:54]} 33. Rxe5 {[%emt 0:00:04][%mdl 4096] Endgame [#] KRB-KRN} a5 $1 {[%emt 0:00:39] ...a4 is the strong threat.} 34. Re3 {[%emt 0:00:24]} c5 {[%emt 0:03:56]} 35. Ne4 {[%emt 0:00:20]} a4 {[%emt 0:02:28] And now ...a3 would win.} 36. Ra3 {[%emt 0:01:13] [#]} Ra5 $1 {[%emt 0:01:37]} 37. Kf1 {[%emt 0:01:03]} Bb3 {[%emt 0:01:44]} 38. Ke2 {[%emt 0:00:37]} c4 {[%emt 0:01:54]} 39. Nc3 {[%emt 0:00:24]} Ra6 {[%emt 0:01:25]} 40. Ne4 {[%emt 0:00:38]} (40. Ke3 {might work better.}) 40... Ra8 {[%emt 0:03:31]} (40... Re6 $19 41. Kf3 g5) 41. Nc3 {[%emt 0:00:10]} (41. Kd2 $17) 41... Re8+ {[%emt 0:01:13]} 42. Kf1 {[%emt 0:00:35]} Kg7 {[%emt 0:00:52]} 43. f4 {[%emt 0:00:31]} Rf8 {[%emt 0:02:08]} 44. g3 {[%emt 0:00:04]} g5 {[%emt 0:00:46]} 45. Kg2 {[%emt 0:00:37]} gxf4 {[%emt 0:01:52]} 46. gxf4 {[%emt 0:00:02]} Kf6 {[%emt 0:02:18]} 47. Kf3 {[%emt 0:01:26]} Kf5 {[%emt 0:00:46] Threatens to win with ...Rd8.} 48. Ne2 {[%emt 0:00:37]} (48. Ra1 $142 Rd8 49. Ke2) 48... Bd1 {[%emt 0:02:36] Strongly threatening ...Re8.} 49. Kf2 {[%emt 0:00:22]} Bxe2 {[%emt 0:00:32]} 50. Kxe2 {[%emt 0:00:03] KR-KR} Ra8 {[%emt 0:00:11]} 51. Ke3 {[%emt 0:00:41]} c3 {[%emt 0:03:19] ( -> ...Rc8)} 52. Rxc3 {[%emt 0:00:28]} (52. Kd3 $19 Rc8 53. Kc2) 52... a3 {[%emt 0:00:02][%cal Ba4a3,Ba3a2][%mdl 32]} 53. Rc5+ {[%emt 0:00:40]} Ke6 {[%emt 0:00:28]} (53... Kf6 $142 54. Rc6+ Kf5 55. Rc5+ Ke6 56. Rc6+ Kd5 57. Rc1 a2 58. Ra1 Ra3+ 59. Kd2 Rxh3 60. Kc2 Rh2+ 61. Kd3 h5 62. Ke3 Rb2 63. Kf3 Kc4 64. f5 Kb3 65. Kg3 Rb1 66. Rxa2 Kxa2 67. Kh4 Rh1+ 68. Kg3 Rf1 69. f6 Rxf6 70. Kh3 Rf5 71. Kh2 Kb3 72. Kg3 Kc3 73. Kh4 Kd2 74. Kg3 Ke3 75. Kg2 Rg5+ 76. Kh3 Rg4 77. Kh2 Kf3 78. Kh1 Kf2 79. Kh2 Rh4#) 54. Rc1 {[%emt 0:00:30]} a2 {[%emt 0:00:05] Black mates.} 55. Ra1 {[%emt 0:00:02]} Kf5 {[%emt 0:00:21]} 56. Kf3 {[%emt 0:00:34]} Ra3+ {[%emt 0:00:16]} 57. Kg2 {[%emt 0:00:15]} Kxf4 {[%emt 0:00:06]} 58. Rf1+ {[%emt 0:01:06]} Ke4 {[%emt 0:00:13]} 59. Ra1 {[%emt 0:00:19]} Kd4 {[%emt 0:00:15]} 60. Kh2 {[%emt 0:00:43]} Kc3 {[%emt 0:00:14] Weighted Error Value: White=0.67/Black=0.45} 0-1

[Event "31st MPL National U18G Chess-ch 2022"]
[Site "Pollachi"]
[Date "2022.04.19"]
[Round "4.3"]
[White "Keerti Shree Reddy"]
[Black "Tejaswi R"]
[Result "1-0"]
[ECO "B74"]
[WhiteElo "1721"]
[BlackElo "1460"]
[Annotator "NA RC"]
[PlyCount "53"]
[EventDate "2022.04.18"]
[EventCountry "IND"]
[SourceTitle "playchess.com"]
[Source "ChessBase"]
[SourceQuality "1"]
[TimeControl "5400+30"]

1. e4 {[%emt 0:01:31]} c5 {[%emt 0:00:54]} 2. Nf3 {[%emt 0:00:11]} d6 {[%emt 0:00:06]} 3. d4 {[%emt 0:00:06]} cxd4 {[%emt 0:00:03]} 4. Nxd4 {[%emt 0:00:08]} Nf6 {[%emt 0:00:05]} 5. Nc3 {[%emt 0:00:10]} g6 {[%emt 0:00:06]} 6. Be3 {[%emt 0:00:08]} Bg7 {[%emt 0:00:06]} 7. Be2 {[%emt 0:00:09]} O-O {[%emt 0:00:13]} 8. O-O {[%emt 0:00:10]} Nc6 {[%emt 0:00:44]} 9. Nb3 {[%emt 0:00:07]} Bd7 {[%emt 0:04:15]} 10. f4 {[%emt 0:00:45]} Rc8 {[%emt 0:02:47]} 11. Kh1 {[%emt 0:02:33]} a6 {[%emt 0:02:27]} 12. Bf3 {[%emt 0:05:14]} b5 {[%emt 0:08:15]} 13. a3 {[%emt 0:02:49]} Qc7 {[%emt 0:04:20]} 14. g4 {[%emt 0:04:15]} Be6 {[%emt 0:03:22]} 15. Nd2 {[%emt 0:17:35]} Na5 {[%emt 0:06:48]} 16. f5 {[%emt 0:06:53]} Bd7 {[%emt 0:01:35]} 17. g5 {[%emt 0:01:33]} gxf5 {[%emt 0:05:11]} 18. gxf6 {[%emt 0:02:15]} Bxf6 {[%emt 0:00:28]} 19. Nd5 {[%emt 0:01:34]} Qxc2 {[%emt 0:03:18]} 20. Nxf6+ {[%emt 0:01:00]} exf6 {[%emt 0:00:43]} 21. Rg1+ {[%emt 0:02:18]} Kh8 {[%emt 0:00:33]} 22. Bd4 {[%emt 0:00:10]} h5 {[%emt 0:02:04]} 23. Bxf6+ {[%emt 0:00:22]} Kh7 {[%emt 0:00:10]} 24. Rg7+ {[%emt 0:00:32]} Kh6 {[%emt 0:01:18]} 25. Qg1 {[%emt 0:00:31]} Qxd2 {[%emt 0:02:06]} 26. Rh7+ {[%emt 0:00:12]} Kxh7 {[%emt 0:01:37]} 27. Qg7# {[%emt 0:00:06]} 1-0

[Event "31st MPL National U18G Chess-ch 2022"]
[Site "Pollachi"]
[Date "2022.04.19"]
[Round "4.4"]
[White "Ishvi Aggarwal"]
[Black "Jyothsna L"]
[Result "1/2-1/2"]
[ECO "A41"]
[WhiteElo "1833"]
[BlackElo "2052"]
[Annotator "TA"]
[PlyCount "63"]
[EventDate "2022.04.18"]
[EventCountry "IND"]
[SourceTitle "playchess.com"]
[Source "ChessBase"]
[SourceQuality "1"]
[TimeControl "5400+30"]

{[%evp 19,63,-16,-12,-12,-9,-10,0,0,0,0,0,-8,8,-41,-7,-38,-45,-44,-40,-54,-25,-55,-53,-70,-29,-43,-35,-40,-37,-37,-34,-35,-19,-38,-40,-45,-44,-54,-36,-36,-49,-61,-61,-63,-27,-61]} 1. d4 {[%emt 0:00:02]} d6 {[%emt 0:01:12]} 2. c4 {[%emt 0:00:06]} e5 {[%emt 0:00:05]} 3. dxe5 {[%emt 0:01:03]} dxe5 {[%emt 0:00:01]} 4. Qxd8+ {[%emt 0:00:09]} Kxd8 {[%emt 0:00:04]} 5. Nc3 {[%emt 0:01:07]} Be6 {[%emt 0:00:25]} 6. b3 {[%emt 0:01:21]} c6 {[%emt 0:01:00]} 7. Nf3 {[%emt 0:00:27]} f6 {[%emt 0:00:16]} 8. Bb2 {[%emt 0:00:25]} Kc7 {[%emt 0:01:34]} 9. O-O-O {[%emt 0:00:37]} Nd7 {[%emt 0:02:23]} 10. e3 {[%emt 0:00:37]} a5 {[%emt 0:04:59]} 11. Be2 {[%emt 0:03:13] A41: 1 d4 d6: Tartakower System and Modern Defence.} Nc5 {[%emt 0:02:48]} 12. Nd2 {[%emt 0:05:50]} Nh6 {[%emt 0:16:33]} 13. Nde4 {[%emt 0:03:31] The position is equal.} Nxe4 {[%emt 0:08:35]} 14. Nxe4 {[%emt 0:00:02] [#]} Be7 $146 {[%emt 0:02:47]} ({Predecessor:} 14... a4 15. Rd2 Bb4 16. Nc3 axb3 17. axb3 Nf7 18. Bd3 Nd6 19. Rhd1 b6 20. Bc2 Nb7 {0-1 (63) Sultana,Z (2081)-Chatterjee,D (2229) Dhaka 2004}) 15. h3 {[%emt 0:07:28]} Nf7 {[%emt 0:02:40]} 16. Bc3 {[%emt 0:04:32]} (16. f4 $11 {deserves consideration.}) 16... b6 {[%emt 0:14:01]} 17. Rd2 {[%emt 0:03:46]} f5 {[%emt 0:06:46]} 18. Ng3 {[%emt 0:00:17]} g6 {[%emt 0:01:18]} 19. Rhd1 {[%emt 0:09:22]} Rhd8 {[%emt 0:02:23]} 20. Bf3 {[%emt 0:04:24]} Rxd2 {[%emt 0:02:58]} 21. Rxd2 {[%emt 0:00:13]} Rd8 {[%emt 0:08:47]} 22. Bd1 {[%emt 0:00:53]} Ba3+ {[%emt 0:01:23]} 23. Kb1 {[%emt 0:01:29]} Rxd2 {[%emt 0:01:42]} 24. Bxd2 {[%emt 0:00:02]} Bb4 {[%emt 0:03:00]} 25. Kc2 {[%emt 0:00:59]} Kd7 {[%emt 0:02:11]} 26. Bxb4 {[%emt 0:01:24]} axb4 $11 {[%emt 0:00:02][%mdl 4096] Endgame KBN-KBN} 27. f4 {[%emt 0:00:42]} c5 {[%emt 0:01:34]} 28. h4 {[%emt 0:03:00]} Kd6 {[%emt 0:02:09]} 29. Kb2 {[%emt 0:03:40]} Bd7 {[%emt 0:03:50]} 30. Nf1 {[%emt 0:03:47]} Bc6 {[%emt 0:01:24] [#] Hoping for ...exf4.} 31. g3 {[%emt 0:00:20]} Nd8 {[%emt 0:01:30]} 32. a3 {[%emt 0:41:42] Weighted Error Value: White=0.11 (very precise) /Black=0.10 (very precise)} 1/2-1/2

[Event "31st MPL National U18G Chess-ch 2022"]
[Site "Pollachi"]
[Date "2022.04.19"]
[Round "4.5"]
[White "Varshita Jain"]
[Black "Chinnam Vyshnavi"]
[Result "1/2-1/2"]
[ECO "C02"]
[WhiteElo "1491"]
[BlackElo "1721"]
[Annotator "NA RC"]
[PlyCount "64"]
[EventDate "2022.04.18"]
[EventCountry "IND"]
[SourceTitle "playchess.com"]
[Source "ChessBase"]
[SourceQuality "1"]
[TimeControl "5400+30"]

1. e4 {[%emt 0:00:04]} e6 {[%emt 0:00:08]} 2. d4 {[%emt 0:00:06]} d5 {[%emt 0:00:03]} 3. e5 {[%emt 0:00:05]} c5 {[%emt 0:00:10]} 4. c3 {[%emt 0:00:06]} Qb6 {[%emt 0:00:35]} 5. Nf3 {[%emt 0:00:15]} Bd7 {[%emt 0:00:17]} 6. Bd3 {[%emt 0:00:16]} Bb5 {[%emt 0:00:41]} 7. dxc5 {[%emt 0:02:06]} Bxc5 {[%emt 0:01:56]} 8. O-O {[%emt 0:00:04]} a5 {[%emt 0:05:57]} 9. Bxb5+ {[%emt 0:13:36]} Qxb5 {[%emt 0:00:02]} 10. Nd4 {[%emt 0:03:41]} Bxd4 {[%emt 0:01:15]} 11. cxd4 {[%emt 0:00:21]} Ne7 {[%emt 0:02:16]} 12. Nc3 {[%emt 0:00:51]} Qc6 {[%emt 0:05:59]} 13. Be3 {[%emt 0:09:09]} O-O {[%emt 0:10:07]} 14. Rc1 {[%emt 0:01:09]} a4 {[%emt 0:15:54]} 15. Bg5 {[%emt 0:13:27]} Qd7 {[%emt 0:08:32]} 16. Nxa4 {[%emt 0:14:58]} Qxa4 {[%emt 0:01:36]} 17. Bxe7 {[%emt 0:00:21]} Re8 {[%emt 0:01:32]} 18. b3 {[%emt 0:06:34]} Qxa2 {[%emt 0:03:57]} 19. Qg4 {[%emt 0:00:42]} Qd2 {[%emt 0:07:44]} 20. h4 {[%emt 0:06:37]} h5 {[%emt 0:09:53]} 21. Qxh5 {[%emt 0:04:02]} Nc6 {[%emt 0:03:11]} 22. Bf6 {[%emt 0:01:52]} Qf4 {[%emt 0:07:50]} 23. Rc3 {[%emt 0:10:06]} Nxd4 {[%emt 0:03:17]} 24. Rg3 {[%emt 0:00:56]} Nf5 {[%emt 0:02:17]} 25. Rg5 {[%emt 0:02:47]} Ra2 {[%emt 0:05:30]} 26. g4 {[%emt 0:00:28]} Rxf2 {[%emt 0:01:00]} 27. Rxf2 {[%emt 0:00:08]} Qg3+ {[%emt 0:01:10]} 28. Rg2 {[%emt 0:00:12]} Qe3+ {[%emt 0:00:15]} 29. Rf2 {[%emt 0:01:22]} Qg3+ {[%emt 0:00:10]} 30. Rg2 {[%emt 0:01:49]} Qe3+ {[%emt 0:00:06]} 31. Rf2 {[%emt 0:06:56]} Qg3+ {[%emt 0:01:16]} 32. Rg2 {[%emt 0:00:41]} Qe3+ {[%emt 0:00:18]} 1/2-1/2

[Event "31st MPL National U18G Chess-ch 2022"]
[Site "Pollachi"]
[Date "2022.04.19"]
[Round "4.6"]
[White "Udagedara, Sandali Kanishka"]
[Black "Pournami S"]
[Result "1-0"]
[ECO "A21"]
[WhiteElo "1510"]
[BlackElo "1390"]
[Annotator "NA RC"]
[PlyCount "92"]
[EventDate "2022.04.18"]
[EventCountry "IND"]
[SourceTitle "playchess.com"]
[Source "ChessBase"]
[SourceQuality "1"]
[TimeControl "5400+30"]

1. c4 {[%emt 0:01:01]} e5 {[%emt 0:00:06]} 2. Nc3 {[%emt 0:00:19]} Nf6 {[%emt 0:00:06]} 3. g3 {[%emt 0:00:03]} Bb4 {[%emt 0:00:13]} 4. Bg2 {[%emt 0:00:09]} Bxc3 {[%emt 0:00:07]} 5. bxc3 {[%emt 0:00:02]} c6 {[%emt 0:00:16]} 6. Nf3 {[%emt 0:03:01]} Qc7 {[%emt 0:00:40]} 7. d3 {[%emt 0:02:04]} d5 {[%emt 0:01:06]} 8. cxd5 {[%emt 0:00:16]} cxd5 {[%emt 0:00:08]} 9. Qb3 {[%emt 0:01:42]} O-O {[%emt 0:00:36]} 10. O-O {[%emt 0:00:43]} Be6 {[%emt 0:00:43]} 11. Ng5 {[%emt 0:01:10]} Nc6 {[%emt 0:00:57]} 12. Ba3 {[%emt 0:04:26]} Rfe8 {[%emt 0:01:03]} 13. Nxe6 {[%emt 0:05:21]} Rxe6 {[%emt 0:00:27]} 14. Rab1 {[%emt 0:05:07]} b6 {[%emt 0:02:13]} 15. Qa4 {[%emt 0:05:13]} Rae8 {[%emt 0:01:52]} 16. Bh3 {[%emt 0:00:38]} Nd8 {[%emt 0:04:16]} 17. Bxe6 {[%emt 0:00:46]} Nxe6 {[%emt 0:00:13]} 18. Rbc1 {[%emt 0:01:53]} Ng5 {[%emt 0:02:37]} 19. Qh4 {[%emt 0:03:04]} h6 {[%emt 1:22:21]} 20. c4 d4 21. f4 exf4 22. gxf4 Ne6 {[%emt 0:00:00]} 23. Rf2 Nc5 {[%emt 0:00:00]} 24. Rg2 Kh7 {[%emt 0:00:00]} 25. Rf1 Na4 {[%emt 0:00:00]} 26. Qg3 Rg8 {[%emt 0:00:00]} 27. f5 Qd7 {[%emt 0:00:00]} 28. Qd6 Qxd6 {[%emt 0:00:00]} 29. Bxd6 Re8 {[%emt 0:00:00]} 30. Bb4 h5 {[%emt 0:00:00]} 31. h3 b5 {[%emt 0:00:00]} 32. Rf3 bxc4 {[%emt 0:00:00]} 33. dxc4 Rb8 {[%emt 0:00:00]} 34. a3 Ne4 {[%emt 0:00:00]} 35. Rd3 Rd8 {[%emt 0:00:00]} 36. e3 Nec5 {[%emt 0:00:00]} 37. Bxc5 Nxc5 {[%emt 0:00:00]} 38. Rxd4 Re8 {[%emt 0:00:00]} 39. Rd5 Nb3 {[%emt 0:00:00]} 40. Rd7 Kg8 {[%emt 0:00:00]} 41. Kf2 a5 {[%emt 0:00:00]} 42. Kf3 a4 {[%emt 0:00:00]} 43. Ra7 Nc5 {[%emt 0:00:00]} 44. Rd2 Ne4 {[%emt 0:00:00]} 45. Rad7 Ng5+ {[%emt 0:00:00]} 46. Ke2 h4 {[%emt 0:00:00]} 1-0

[Event "31st MPL National U18G Chess-ch 2022"]
[Site "Pollachi"]
[Date "2022.04.19"]
[Round "4.7"]
[White "Khairmode Dhanashree"]
[Black "Arya G Mallar"]
[Result "1-0"]
[ECO "B01"]
[WhiteElo "1438"]
[BlackElo "1234"]
[Annotator "NA RC"]
[PlyCount "109"]
[EventDate "2022.04.18"]
[EventCountry "IND"]
[SourceTitle "playchess.com"]
[Source "ChessBase"]
[SourceQuality "1"]
[TimeControl "5400+30"]

1. e4 {[%emt 0:00:04]} d5 {[%emt 0:00:08]} 2. exd5 {[%emt 0:00:04]} Nf6 {[%emt 0:00:07]} 3. d4 {[%emt 0:00:04]} Bg4 {[%emt 0:00:06]} 4. Bb5+ {[%emt 0:00:05]} c6 {[%emt 0:00:14]} 5. dxc6 {[%emt 0:00:29]} Nxc6 {[%emt 0:00:08]} 6. Nf3 {[%emt 0:08:49]} Qb6 {[%emt 0:02:06]} 7. Bxc6+ {[%emt 0:00:57]} Qxc6 {[%emt 0:00:27]} 8. Be3 {[%emt 0:08:33]} e6 {[%emt 0:01:59]} 9. Nbd2 {[%emt 0:01:44]} Bd6 {[%emt 0:02:10]} 10. c3 {[%emt 0:01:15]} O-O {[%emt 0:02:29]} 11. Qb3 {[%emt 0:02:49]} b5 {[%emt 0:07:28]} 12. O-O {[%emt 0:04:02]} Ne4 {[%emt 0:04:58]} 13. Nxe4 {[%emt 0:16:09]} Qxe4 {[%emt 0:00:41]} 14. Nd2 {[%emt 0:00:24]} Qc6 {[%emt 0:06:39]} 15. f3 {[%emt 0:04:49]} Bf5 {[%emt 0:01:36]} 16. Rfc1 {[%emt 0:01:10]} Rfc8 {[%emt 0:05:59]} 17. Qd1 {[%emt 0:03:53]} Qd5 {[%emt 0:03:35]} 18. Nf1 {[%emt 0:00:29]} Bg6 {[%emt 0:07:51]} 19. Qd2 {[%emt 0:03:30]} e5 {[%emt 0:03:53]} 20. dxe5 {[%emt 0:01:15]} Qxe5 {[%emt 0:00:12]} 21. Rd1 {[%emt 0:03:01]} Rd8 {[%emt 0:01:55]} 22. Bd4 {[%emt 0:00:11]} Bc5 {[%emt 0:04:39]} 23. Qf2 {[%emt 0:00:54]} Bxd4 {[%emt 0:00:47]} 24. cxd4 {[%emt 0:00:28]} Qd6 {[%emt 0:01:08]} 25. Rd2 {[%emt 0:01:21]} Rac8 {[%emt 0:01:30]} 26. Rad1 {[%emt 0:00:47]} f6 {[%emt 0:02:38]} 27. Qe3 {[%emt 0:10:02]} Kh8 {[%emt 0:02:32]} 28. Ng3 {[%emt 0:01:23]} Qd5 {[%emt 0:01:28]} 29. Qa3 {[%emt 0:01:52]} Rd7 {[%emt 0:01:20]} 30. Ne2 {[%emt 0:00:57]} Qc4 {[%emt 0:02:21]} 31. Rc1 {[%emt 0:01:22]} Qg8 {[%emt 0:00:20]} 32. Rxc8 {[%emt 0:00:16]} Qxc8 {[%emt 0:00:06]} 33. Qc3 {[%emt 0:01:05]} Qd8 {[%emt 0:01:36]} 34. Qc5 {[%emt 0:00:51]} a6 {[%emt 0:00:37]} 35. d5 {[%emt 0:04:50]} Bf7 {[%emt 0:02:30]} 36. d6 {[%emt 0:01:46]} Bxa2 {[%emt 0:00:45]} 37. Nc3 {[%emt 0:01:03]} Bc4 {[%emt 0:00:35]} 38. Ne4 {[%emt 0:00:44]} h6 {[%emt 0:01:19]} 39. Qd4 {[%emt 0:00:25]} Qe8 {[%emt 0:01:08]} 40. h3 {[%emt 0:00:18]} f5 {[%emt 0:03:24]} 41. Nc5 {[%emt 0:00:17]} Rd8 {[%emt 0:00:06]} 42. d7 {[%emt 0:01:04]} Qe1+ {[%emt 0:00:50]} 43. Kh2 {[%emt 0:00:05]} Be6 {[%emt 0:00:15]} 44. Rd1 {[%emt 0:00:20]} Qe2 {[%emt 0:00:39]} 45. Qd6 {[%emt 0:00:57]} Bxd7 {[%emt 0:01:59]} 46. Nxd7 {[%emt 0:00:12]} Qxb2 {[%emt 0:00:45]} 47. Re1 {[%emt 0:04:31]} Rc8 {[%emt 0:02:50]} 48. Qxa6 {[%emt 0:03:31]} Rd8 {[%emt 0:01:54]} 49. Ne5 {[%emt 0:00:59]} Qc3 {[%emt 0:02:08]} 50. Qe6 {[%emt 0:00:48]} Qc7 {[%emt 0:01:32]} 51. Kh1 {[%emt 0:00:14]} Rb8 {[%emt 0:00:49]} 52. Nf7+ {[%emt 0:00:10]} Kh7 {[%emt 0:00:47]} 53. Qxf5+ {[%emt 0:00:10]} g6 {[%emt 0:01:19]} 54. Qf6 {[%emt 0:00:09]} Rc8 {[%emt 0:02:46]} 55. Ng5+ {[%emt 0:00:16]} 1-0